Cogmind - Beta 16 --- EXPLORER MODE // 2025.11.27 @ 15:10:20 Player: K.K.Y. Result: Destroyed by S-10 Pest with Light Assault Rifle Performance ------------- Evolutions (0) 0 Regions Visited (3) 600 Robots Destroyed (33) 165 Value Destroyed (1045) 1045 Prototype IDs (1) 20 Alien Tech Used (0) 0 Bonus (-92) -92 TOTAL SCORE: 1738 Bonus ------- Friendly Fire -92 Cogmind --------- Core Integrity 0/250 Matter 289/300 Energy 163/170 System Corruption 0% Temperature Cool (0) Movement Core (650) Ox12 Location -10/Subcaves Parts ------- > --- POWER (1) -------- Makeshift Power Source > --- PROPULSION (2) --- (None) > --- UTILITY (3) ------ Large Storage Unit Improved Terrain Scanner > --- WEAPON (2) ------- Assault Cannon Slug Cannon > --- INVENTORY (15) --- Medium Storage Unit Huge Storage Unit Humpback Machine Analyzer Sensor Array Improved Signal Interpreter Shield Generator Shock Rifle Barrage Gun Barrage Gun Barrage Gun Barrage Gun Enhanced Flamer Peak State ------------ > --- POWER ------------ Light Nuclear Core > --- PROPULSION ------- Light Treads Armored Treads > --- UTILITY ---------- Large Storage Unit Structural Scanner Improved Terrain Scanner > --- WEAPON ----------- Improved EM Shotgun Improved EM Shotgun > --- INVENTORY -------- Makeshift Power Source Medium Storage Unit Huge Storage Unit Machine Analyzer Sensor Array Improved Signal Interpreter Shield Generator Improved EM Shotgun Shock Rifle Beam Cannon Beam Cannon Ion Cannon Assault Cannon Enhanced Flamer [Rating: 21] Favorites ----------- Power Light Nuclear Core Engine Light Ion Engine Power Core Light Nuclear Core Propulsion Armored Treads Treads Armored Treads Leg Aluminum Leg Utility Large Storage Unit Device Improved Terrain Scanner Storage Large Storage Unit Weapon Improved EM Shotgun Energy Gun Improved EM Shotgun Energy Cannon Ion Cannon Ballistic Cannon Assault Cannon Build | -11 -10 -10 -10 ------- Run | Yrd Mat Min Sub Slots Evolved 1 | . 1 . . Power . | . . . . Propulsion . | . . . . Utility 1 | . 1 . . Weapon . | . . . . Parts Attached 21 | 5 8 3 5 Power 3 | 1 1 . 1 Engine 2 | 1 . . 1 Core 1 | . 1 . . Reactor . | . . . . Propulsion 4 | 2 . 2 . Treads 2 | . . 2 . Leg 2 | 2 . . . Wheel . | . . . . Hover . | . . . . Flight . | . . . . Utility 4 | . 3 1 . Device 2 | . 1 1 . Storage 2 | . 2 . . Processor . | . . . . Hackware . | . . . . Protection . | . . . . Artifact . | . . . . Weapon 10 | 2 4 . 4 Energy Gun 5 | 2 2 . 1 Energy Cannon 3 | . 2 . 1 Ballistic Gun . | . . . . Ballistic Cannon 2 | . . . 2 Launcher . | . . . . Special Weapon . | . . . . Impact Weapon . | . . . . Slashing Weapon . | . . . . Piercing Weapon . | . . . . Special Melee Weapon . | . . . . Unidentified Prototypes 1 | . 1 . . Parts Lost 7 | . . . 7 Power 1 | . . . 1 Propulsion 2 | . . . 2 Utility 1 | . . . 1 Weapon 3 | . . . 3 Highest Loss Streak 2 | . . . 2 To Critical Strikes . | . . . . Average Backups 11 | 1 5 10 14 Power . | . . . . Propulsion . | . . . . Utility 5 | . 2 4 6 Weapon 5 | . 2 5 7 Tool/Special . | . . . . Unused Backups 14 | . 1 . 13 Power . | . . . . Propulsion . | . . . . Utility 7 | . 1 . 6 Weapon 7 | . . . 7 Tool/Special . | . . . . Average Slot Usage (%) 79 | . 74 92 79 Engine 2 | . 5 . 1 Core 5 | . 2 12 5 Treads 13 | . . 7 18 Leg 6 | . 24 17 . Device 15 | . 5 17 18 Storage 11 | . 11 12 12 Energy Gun 9 | . 19 25 4 Energy Cannon 4 | . 5 . 5 Ballistic Cannon 8 | . . . 11 Peak Build Rating 21 | 5 14 20 21 Average Rating 16 | 2 9 16 18 On Entrance 9 | . 5 14 20 Avg Prop Armor Cover (%) . | . . . . Naked Turns 1 | . 1 . . Heaviest Build 38 | 7 32 33 38 Greatest Support 40 | 20 20 40 40 Greatest Overweight (x) 1 | . 1 1 1 Average Overweight (x) . | . . . . Largest Inventory Capacity 15 | 5 15 15 15 Average Capacity 14 | 5 12 15 15 Most Carried 15 | 5 10 15 15 Average Carried 12 | 1 5 10 14 Final Capacity 15 | 5 15 15 15 Final Carried 14 | 1 8 13 14 Class Distribution -------------------- 100% | Hacker-Mutant Dominant Class ---------------- Hacker-Mutant | -10/Materials Hacker-Mutant | -10/Mines Hacker-Mutant | -10/Subcaves Resources | -11 -10 -10 -10 ----------- Run | Yrd Mat Min Sub Matter Collected 1113 | 155 255 30 673 Remotely . | . . . . Salvage Created 1085 | . 425 69 591 Parts 68 | . 20 7 41 Haulers Intercepted 2 | . 2 . . Recyclers Shooed . | . . . . Parts Field Recycled . | . . . . Retrieved Matter . | . . . . Parts Self-Destructed . | . . . . Prevented . | . . . . Parts Restored . | . . . . Kills | -11 -10 -10 -10 ------- Run | Yrd Mat Min Sub Combat Hostiles Destroyed 28 | . 6 1 21 Guns 8 | . 4 1 3 Cannons 18 | . 1 . 17 Classes Destroyed 8 | . 3 1 4 Tunneler 1 | . . 1 . Hauler 2 | . 2 . . Watcher 2 | . 2 . . Swarmer 4 | . . . 4 Grunt 7 | . 6 1 . Sentry 1 | . . . 1 Subdweller 16 | . . . 16 Scientist 1 | . . . 1 Best Kill Streak 3 | . 3 1 2 Combat Bots Only 2 | . 2 1 2 Max Kills in Single Turn 1 | . 1 1 1 Gunslinging . | . . . . Exploded . | . . . . Melee . | . . . . Uniques/NPCs Destroyed . | . . . . Combat | -11 -10 -10 -10 -------- Run | Yrd Mat Min Sub Hostile Shots Fired 138 | . 17 . 121 Missed 38 | . 5 . 33 Hits 100 | . 12 . 88 Projectile 100 | . 12 . 88 AOE 2 | . . . 2 Critical Strikes 2 | . . . 2 Damage Taken 1324 | . 100 . 1224 Core 252 | . 35 . 217 Absorbed by Shields . | . . . . Ignored by Resistances 763 | . 62 . 701 Core Remaining (%) 100 | 100 . . . Volleys Fired 162 | . 23 2 137 Largest 2 | . 2 2 2 Hottest 120 | . 120 90 97 Shots Fired 291 | . 46 4 241 Gun 88 | . 36 4 48 Cannon 203 | . 10 . 193 Launcher . | . . . . Special . | . . . . Kinetic 131 | . . . 131 Thermal 86 | . 24 . 62 Explosive . | . . . . Electromagnetic 74 | . 22 4 48 Robot Hit Streak 23 | . 11 8 23 Robot Miss Streak 2 | . 2 . 2 Penetration Max . | . . . . Secondary Targets . | . . . . Shots Hit Robots 151 | . 36 3 112 Core Hits 59 | . 17 4 38 Critical Kills 1 | . 1 . . Critical Parts Destroyed . | . . . . Critical Strikes 4 | . 3 . 1 Burn 2 | . 2 . . Meltdown 1 | . 1 . . Blast 1 | . . . 1 Melee Attacks . | . . . . Impact . | . . . . Slashing . | . . . . Piercing . | . . . . Sneak Attacks . | . . . . Combat Hostiles . | . . . . Follow-up Attacks . | . . . . Damage Inflicted 3243 | . 590 93 2560 Guns 964 | . 486 69 409 Cannons 2145 | . 104 . 2041 Explosions 134 | . . 24 110 Melee . | . . . . Ramming . | . . . . Kinetic 1375 | . . . 1375 Thermal 1055 | . 255 24 776 Explosive . | . . . . Electromagnetic 813 | . 335 69 409 Impact . | . . . . Slashing . | . . . . Piercing . | . . . . Highest Corruption . | . . . . Average Corruption . | . . . . Corruption Purged . | . . . . Corruption Blocked . | . . . . Overload Shots . | . . . . Overflow Damage 39 | . . . 39 Projectiles 3 | . . . 3 Explosions 36 | . . . 36 Melee . | . . . . Knockbacks 21 | . . . 21 Impact . | . . . . Kinetic 21 | . . . 21 Secondary . | . . . . Self-Inflicted Damage 55 | . . . 55 Shots 2 | . . . 2 Rammed . | . . . . Targets Rammed . | . . . . Kicked . | . . . . Crushed . | . . . . Highest Temperature 306 | . 306 36 21 Average Temperature 71 | . 82 18 5 Received Heat Transfer 294 | . 90 . 204 Siege Activations . | . . . . Martial Activations . | . . . . Shielding Activations . | . . . . Robots Disrupted . | . . . . Combat Hostiles . | . . . . Robots Corrupted 1 | . . . 1 Combat Hostiles 1 | . . . 1 Parts Fried 4 | . 2 . 2 Impact Corruptions . | . . . . Robots Melted 2 | . 2 . . Combat Hostiles 1 | . 1 . . Parts Melted 2 | . 2 . . Heat Transferred 2037 | . 814 50 1173 Parts Sabotaged . | . . . . Parts Stolen . | . . . . Parts Stripped . | . . . . Power Chain Reactions 3 | . . 1 2 Alert | -11 -10 -10 -10 ------- Run | Yrd Mat Min Sub Maximum Alert Level . | . . . . Low Security (%) 100 | 100 100 100 . Level 1 . | . . . . Level 2 . | . . . . Level 3 . | . . . . Level 4 . | . . . . Level 5 . | . . . . High Security . | . . . . Max Security . | . . . . Peak Influence 50 | . 50 30 . Initial . | . . . . Average 2 | . 3 . . Influence Increases 338 | . 178 35 125 Destroy 0b10 Robot/C 240 | . 120 20 100 Destroy 0b10 Robot/NC 25 | . 20 5 . Destroy Leader 58 | . 38 10 10 Lose Combat Pursuer 15 | . . . 15 Influence Decreases 303 | . 178 35 90 Time Decay 303 | . 178 35 90 Squads Dispatched 1 | . . 1 . Investigation 1 | . . 1 . Extermination . | . . . . Reinforcement . | . . . . Assault . | . . . . Garrison . | . . . . Intercept . | . . . . Searches Triggered . | . . . . Construction Impeded . | . . . . Haulers Reinforced . | . . . . Active Scanning Responses . | . . . . Cargo Convoy Interrupts . | . . . . Stealth | -11 -10 -10 -10 --------- Run | Yrd Mat Min Sub Distress Signals 1 | . 1 . . Communications Jammed . | . . . . Distress Signals . | . . . . Times Spotted 38 | . 13 2 23 Peak Tracking Total 3 | . 3 2 3 Tactical Retreats 1 | . . . 1 Traps | -11 -10 -10 -10 ------- Run | Yrd Mat Min Sub Traps Triggered 7 | . 6 . 1 Indirectly . | . . . . Trap Hack Attempts . | . . . . Triggered . | . . . . Disarmed . | . . . . Reprogrammed . | . . . . Reused . | . . . . Traps Extracted . | . . . . Installed . | . . . . Triggered . | . . . . Machines | -11 -10 -10 -10 ---------- Run | Yrd Mat Min Sub Machines Disabled . | . . . . Max in Single Turn . | . . . . Machines Repaired . | . . . . Machines Dismantled . | . . . . Machines Sabotaged . | . . . . Overloaded Fab Kills . | . . . . Hacking | -11 -10 -10 -10 --------- Run | Yrd Mat Min Sub Machines Accessed 2 | . . 1 1 Terminals . | . . . . Fabricators . | . . . . Repair Stations . | . . . . Recycling Units . | . . . . Scanalyzers . | . . . . Garrison Access . | . . . . Total Hacks 4 | . . 1 3 Successful 4 | . . 1 3 Failed . | . . . . Catastrophic . | . . . . Database Lockouts . | . . . . Manual . | . . . . Terminals . | . . . . Fabricators . | . . . . Repair Stations . | . . . . Recycling Units . | . . . . Scanalyzers . | . . . . Garrison Access . | . . . . Terminal Hacks 4 | . . 1 3 Record 3 | . . . 3 Open Door 1 | . . 1 . Fabricator Hacks . | . . . . Repair Station Hacks . | . . . . Recycling Unit Hacks . | . . . . Scanalyzer . | . . . . Garrison Access Hacks . | . . . . Unauthorized Hacks . | . . . . Terminals . | . . . . Fabricators . | . . . . Repair Stations . | . . . . Recycling Units . | . . . . Scanalyzers . | . . . . Garrison Access . | . . . . Data Cores Recovered . | . . . . Used . | . . . . Hacking Detections . | . . . . Full Trace Events . | . . . . Feedback Events . | . . . . Feedback Blocked . | . . . . Robot Schematics Acquired . | . . . . Robots Built . | . . . . Authchips . | . . . . Time . | . . . . Total Robot Build Rating . | . . . . Part Schematics Acquired . | . . . . Parts Built . | . . . . Authchips . | . . . . Time . | . . . . Total Part Build Rating . | . . . . Part Studies Acquired . | . . . . Parts Repaired . | . . . . Time . | . . . . Parts Recycled . | . . . . Recycled Matter . | . . . . Retrieved Matter . | . . . . Retrieved Components . | . . . . Parts Scanalyzed . | . . . . Part Schematics Acquired . | . . . . Parts Damaged . | . . . . Bothacking | -11 -10 -10 -10 ------------ Run | Yrd Mat Min Sub Used RIF Installer . | . . . . Robots Hacked . | . . . . Non-combat . | . . . . Combat . | . . . . Robot Hacks Applied . | . . . . Relay Couplers Released . | . . . . Fabnet Peak Effective % . | . . . . Robots Rewired . | . . . . Allies Hacked . | . . . . Hacks Repelled . | . . . . Allies | -11 -10 -10 -10 -------- Run | Yrd Mat Min Sub Total Allies . | . . . . Largest Group . | . . . . Highest-Rated Group . | . . . . Highest-Rated Ally . | . . . . Total Orders . | . . . . Ally Attacks . | . . . . Total Damage . | . . . . Kills . | . . . . Allies Corrupted . | . . . . Allies Melted . | . . . . Intel | -11 -10 -10 -10 ------- Run | Yrd Mat Min Sub Active Infowar (turns) 5500 | . 507 628 4365 Terrain 4628 | . . 263 4365 Structural 3216 | . 507 628 2081 Robot Analysis Total . | . . . . Derelict Logs Recovered 2 | . . . 2 Drone Launches . | . . . . Drone Recoveries . | . . . . Exploration | -11 -10 -10 -10 ------------- Run | Yrd Mat Min Sub Turns Passed 6206 | 49 1164 628 4365 Spaces Moved 2703 | 47 683 304 1669 Core 32 | 25 7 . . Treads 1759 | . . 90 1669 Legs 912 | 22 676 214 . Wheels . | . . . . Hover . | . . . . Flight . | . . . . Fastest Speed 50 | 50 50 165 165 Average Speed 185 | 82 149 182 204 Slowest Speed 250 | 120 190 190 250 Overloaded Moves . | . . . . Propulsion Burnouts . | . . . . Robots Hopped . | . . . . Potential Cave-ins 4 | . . . 4 Cave-ins Triggered . | . . . . Exploration Rate (%) 59 | 4 97 64 74 Regions Visited 3 Branch Regions 2 Pre-discovered Areas 2 | . . . 2 Known Exits Taken 3 | 1 1 1 . Unknown Exits Taken . | . . . . Scrap Searched 15 | . . 1 14 Spaces Dug 9 | . . . 9 Terrain Destroyed 28 | . . . 28 Melee . | . . . . Projectile 12 | . . . 12 AOE 16 | . . . 16 Terrain Rammed . | . . . . Walls Destroyed . | . . . . Machines Disabled . | . . . . Actions | -11 -10 -10 -10 --------- Run | Yrd Mat Min Sub Total 3603 | 57 785 374 2387 Wait 655 | . 34 56 565 Move 2700 | 46 682 303 1669 Hop . | . . . . Pick Up 42 | 6 21 8 7 Fast Attach 2 | . 1 . 1 Attach 27 | 5 15 3 4 Detach 5 | . 5 . . Swap . | . . . . Drop 10 | . 4 2 4 Fire 162 | . 23 2 137 Melee . | . . . . Ram . | . . . . Kick . | . . . . Crush . | . . . . Escape Stasis . | . . . . Rewire . | . . . . Trap . | . . . . Miscellaneous . | . . . . Route ------- -11/Scrapyard -10/Materials (discovered 5 exits: *Mat x3 / *Min x2) -10/Mines (discovered 3 exits: *Mat x2 / *Sub) -10/Subcaves (discovered 2 exits: *Mat x2) History --------- Turn | Location | Event 7 | -11/Scrapyard | Identified exit to Materials 7 | -11/Scrapyard | Discovered exit to Materials (range 15) 50 | -11/Scrapyard | Entered Materials 50 | -10/Materials | Evolved 1 slot: Utility x1 103 | -10/Materials | Identified exit to Mines 103 | -10/Materials | Discovered exit to Mines (range 8) 213 | -10/Materials | Identified exit to Materials 213 | -10/Materials | Discovered exit to Materials (range 10) 305 | -10/Materials | Build established: Hacker-Mutant 470 | -10/Materials | Discovered exit to Mines (range 7) 756 | -10/Materials | Discovered exit to Materials (range 14) 998 | -10/Materials | Discovered exit to Materials (range 8) 1214 | -10/Materials | Entered Mines 1394 | -10/Mines | Discovered exit to Materials (range 9) 1588 | -10/Mines | Discovered exit to Materials (range 6) 1606 | -10/Mines | Met a Derelict shopkeep closing up shop 1813 | -10/Mines | Identified exit to Subcaves 1813 | -10/Mines | Discovered exit to Subcaves (range 5) 1842 | -10/Mines | Entered Subcaves 1843 | -10/Subcaves | Approached by a straggling Scientist 1877 | -10/Subcaves | Ambushed by Subdweller buried in earth 1968 | -10/Subcaves | Visited Clippyterm 1973 | -10/Subcaves | Learned location of Section 7 (-3) 2115 | -10/Subcaves | Identified exit to Materials 2115 | -10/Subcaves | Discovered exit to Materials (range 12) 2648 | -10/Subcaves | Shifting Twisted Machinery released Flamer 2731 | -10/Subcaves | Shifting Twisted Machinery released Battle Rifle 3025 | -10/Subcaves | Shifting Twisted Machinery released Barrage Gun 3032 | -10/Subcaves | Shifting Twisted Machinery released Sub. Power Source 3084 | -10/Subcaves | A swath of the cavern ceiling suddenly collapsed 3151 | -10/Subcaves | Learned location of Zion (-6) 3151 | -10/Subcaves | Met a Zionite searching for "candidates" 3519 | -10/Subcaves | Shifting Twisted Machinery released Mak. Leg 3690 | -10/Subcaves | Core integrity fell below 50% 3912 | -10/Subcaves | Ambushed by Subdweller buried in earth 3960 | -10/Subcaves | Discovered exit to Materials (range 7) 4938 | -10/Subcaves | A swath of the cavern ceiling suddenly collapsed 5281 | -10/Subcaves | Learned Materials security intel 5292 | -10/Subcaves | A Subdweller sparked back to life 5292 | -10/Subcaves | A Subdweller sparked back to life 5330 | -10/Subcaves | Core integrity fell below 20% 5546 | -10/Subcaves | Disturbed a concealed Subdweller 5622 | -10/Subcaves | Learned Materials stockpile data 5927 | -10/Subcaves | Disturbed a concealed Subdweller 6207 | -10/Subcaves | Destroyed by S-10 Pest with Light Assault Rifle Last Messages --------------- 05939_ KY-N3E(R) knocked back. 05942_ KY-N3E(R) destroyed. 05955_ Searching scrap... 05955_ Found Sub. Monowheel. 05955_ Found 36 Matter. 05956_ Acquired 36 matter. 05960_ Acquired 6 matter. 05962_ Searching scrap... 05962_ Found Piercing Trap. 05962_ Found 53 Matter. 05965_ Searching scrap... 05965_ Found Riot Gun. 05965_ Found Battle Rifle. 05965_ Found 40 Matter. 05972_ Searching scrap... 05972_ Found Battle Rifle. 05972_ Found Piercing Trap. 05972_ Found 48 Matter. 06206_ Arm. Treads destroyed. 06207_ S-10 Pest destroyed. Map ----- +----------------------------------------------------+ | | | ?????????????????????????????????????????????????? | | ??????????????????#??????????????????????????????? | | ??????????????#??????????????????????????????????? | | ???????????????????#???#?????????????????????????? | | ???????#????????#????????????????????????#???????# | | ???#????#???#????????#????????????????????#??????? | | ?????#???#??????#???????????#???????#????????????? | | #????#??????#????????#?#????????????????#????????? | | ???????????????#?##???????????????#?#????????????? | | ??###????#??#???????##???????#??###??#???##???#??? | | ??????#???????#????#????#????????????#?#?????????? | | ?????????#######???#?????????????????????????????? | | ?????#???#&[#%%#?#????????#???#?#?#??#???#?#?????? | | ??????#??#%&%[%#???????#???#????#??????###???????? | | ??###?######["#####???########???#?????????####### | | ??# ### ##&=### ##?## ####????#?#??#?????# | | ??# ## # #### ##????????##???## | | ?## ## ##?####???##### | | ## ## ## ### ##### # | | # ## # | | ## # | | ## #### ## # # ###### ## | | ### ##??## ######????###### ##? | | ##?# ###??# ##??????#?????#?###?? | | #??## ## #?# @ #??????#?????????#??? | | #???# ### #####????#??##?????#?#??? | | ??#?#" ##?##% ##????????????#???#????#?? | | ##### % #???# ##????????????????????????? | | #?## #??#??????????#???????????? | | #?# ## #?????????#?#????????????#? | | # # #?## #####?????????????????????????? | | ### #"=%[ ??????????#???#???????#???#???? | | #?### ? % ????????????????????????#???????? | | #?### #?s ?????????????????????????????????? | | ##??## #?? ???????????#??????????????????????? | | "#??### ???? ???? ????????????????????????????? | | "#?# ####????????????????????#?????????????????# | | #?# ##?#?????????????????????????????????????? | | ##?# ##??####??##????#??????????????#?#?#????? | | #??# ### ## ??????????????????#?????????? | | #### ????????????#?#???#??????????? | | #?# ????????????????#?????????????? | | #?# #???????????? ?????????#???#????? | | ### #??#???????????????#??###??##?????## | | ## #####?####????????????#?#??#????#?## | | ## ### ###????? ???#????#???##### | | ###?????????##???????#?# | | ###???? #?#????##??#?# | | ! ## #?#??#" #?#???#????#??# | +----------------------------------------------------+ Best States ------------- Heat Dissipation 25 Energy Generation 15 Energy Capacity 170 Matter Stores 300 Matter Capacity 300 Sight Range 16 Terrain Scan Range 16 Terrain Scan Density 10 Resistance: KI 35 Resistance: TH 35 Resistance: EX 35 Resistance: EM 35 Resistance: I 35 Resistance: S 35 Resistance: P 35 Evasion (%) 55 Recoil Reduction 2 Offensive Hacking 20 Item Schematics ----------------- None Robot Schematics ------------------ None Fabricated ------------ Nothing Repaired ---------- Nothing Studied --------- None Alien Tech Used ----------------- None Achievements -------------- None Challenges ------------ None Game ------ Seed SixMeleeScrapsphere Manual? 0 Play Time 00:26:48 Cumulative 148.3 hours Start 2025.11.27 @ 14:51:04 End 2025.11.27 @ 15:10:20 Sessions 1 Manual Loads 0 Difficulty Explorer Special Mode None Game No. 183 Rogue 0 Adventurer 0 Explorer 183 Win Type - Total 0 Types 0/0/0/0/0/0/0/0/0/0 Lore% 69 Gallery% 66 Achievement% 52 Wizard Run 0 Options --------- Layout 1 ASCII 0 Keyboard 0 Movement Mouse Keybinds 0 Fullscreen 1 Font 24/Smallcaps Map View 50x35 Zoom Use 0% Tactical HUD 1 Map Filters NONE Filters NONE Steam 1 RUN: 5f367844-7d54-40e0-9f72-9df991c982a0